[Event "Early-Titled-Tuesday-Blitz-July-09-2024"]
[Site "Chess.com"]
[Date "2024.07.09"]
[Round "3"]
[White "chrisclaireredfield"]
[Black "Ratkovic_Miloje"]
[Result "0-1"]
[WhiteElo "2509"]
[BlackElo "2795"]
[TimeControl "180+1"]
[EndTime "8:28:14 PDT"]
[Termination "Ratkovic_Miloje won by resignation"]

1. Nf3 {[%clk 0:03:00.9]} 1... a6 {[%clk 0:03:00.9]} 2. e4 {[%clk 0:03:00.1]}
2... e6 {[%clk 0:03:01.3]} 3. d4 {[%clk 0:02:59.4]} 3... d5 {[%clk 0:03:01.9]}
4. e5 {[%clk 0:02:58.1]} 4... Bd7 {[%clk 0:02:59.7]} 5. b3 {[%clk 0:02:51.6]}
5... c5 {[%clk 0:02:58.1]} 6. c4 {[%clk 0:02:38.7]} 6... cxd4 {[%clk 0:02:50.7]}
7. Nxd4 {[%clk 0:02:38.4]} 7... Nc6 {[%clk 0:02:50.8]} 8. Nf3 {[%clk 0:02:29.4]}
8... Bc5 {[%clk 0:02:36.6]} 9. cxd5 {[%clk 0:02:26.4]} 9... exd5 {[%clk
0:02:36]} 10. Qxd5 {[%clk 0:02:24.1]} 10... Qb6 {[%clk 0:02:36.4]} 11. Qd2
{[%clk 0:01:49.7]} 11... O-O-O {[%clk 0:02:24.4]} 12. Bc4 {[%clk 0:01:32.6]}
12... Bb4 {[%clk 0:02:09.4]} 13. Nc3 {[%clk 0:01:32.1]} 13... Bh3 {[%clk
0:01:49.2]} 14. gxh3 {[%clk 0:01:19.9]} 14... Rxd2 {[%clk 0:01:47.9]} 15. Bxd2
{[%clk 0:01:20.3]} 15... Nd4 {[%clk 0:01:39.9]} 16. Nxd4 {[%clk 0:00:49.6]}
16... Qxd4 {[%clk 0:01:40.8]} 17. Rc1 {[%clk 0:00:26.8]} 17... Ne7 {[%clk
0:01:06.4]} 18. Bxf7 {[%clk 0:00:14.2]} 18... Kb8 {[%clk 0:01:01.4]} 19. Rc2
{[%clk 0:00:03.4]} 19... Bxc3 {[%clk 0:00:58.6]} 20. Bxc3 {[%clk 0:00:03.5]}
20... Qe4+ {[%clk 0:00:59.1]} 0-1

[Event "Early-Titled-Tuesday-Blitz-July-09-2024"]
[Site "Chess.com"]
[Date "2024.07.09"]
[Round "3"]
[White "VaglioSagan"]
[Black "Adar_07"]
[Result "1-0"]
[WhiteElo "2506"]
[BlackElo "2748"]
[TimeControl "180+1"]
[EndTime "8:28:21 PDT"]
[Termination "VaglioSagan won by checkmate"]

1. d4 {[%clk 0:03:00.9]} 1... Nf6 {[%clk 0:02:59]} 2. c4 {[%clk 0:03:00.4]} 2...
e6 {[%clk 0:02:58.9]} 3. Nf3 {[%clk 0:03:00.6]} 3... d5 {[%clk 0:02:56.8]} 4.
Nc3 {[%clk 0:03:00.5]} 4... Be7 {[%clk 0:02:56.5]} 5. Bf4 {[%clk 0:02:56.8]}
5... O-O {[%clk 0:02:56.5]} 6. e3 {[%clk 0:02:56.8]} 6... a6 {[%clk 0:02:55.9]}
7. cxd5 {[%clk 0:02:37.1]} 7... Nxd5 {[%clk 0:02:56.8]} 8. Nxd5 {[%clk
0:02:33.9]} 8... exd5 {[%clk 0:02:56.2]} 9. Bd3 {[%clk 0:02:31.9]} 9... Bb4+
{[%clk 0:02:52.4]} 10. Nd2 {[%clk 0:02:32.4]} 10... c6 {[%clk 0:02:47.2]} 11.
O-O {[%clk 0:02:31.7]} 11... Nd7 {[%clk 0:02:45.4]} 12. a3 {[%clk 0:02:23.3]}
12... Be7 {[%clk 0:02:45.3]} 13. Qc2 {[%clk 0:02:19.7]} 13... Nf6 {[%clk
0:02:44.8]} 14. b4 {[%clk 0:02:06.8]} 14... Bg4 {[%clk 0:02:42.4]} 15. Be5
{[%clk 0:02:02.7]} 15... g6 {[%clk 0:02:41.9]} 16. h3 {[%clk 0:02:00.5]} 16...
Be6 {[%clk 0:02:41]} 17. Nb3 {[%clk 0:01:48]} 17... Nd7 {[%clk 0:02:38.1]} 18.
Bg3 {[%clk 0:01:44.9]} 18... h5 {[%clk 0:02:34.8]} 19. Nc5 {[%clk 0:01:41.4]}
19... Nxc5 {[%clk 0:02:34.6]} 20. bxc5 {[%clk 0:01:41]} 20... h4 {[%clk
0:02:33]} 21. Be5 {[%clk 0:01:36.4]} 21... f6 {[%clk 0:02:31.1]} 22. Bh2 {[%clk
0:01:35.7]} 22... g5 {[%clk 0:02:27.1]} 23. Rab1 {[%clk 0:01:23.5]} 23... Qd7
{[%clk 0:02:25.5]} 24. Rb3 {[%clk 0:00:46.1]} 24... Ra7 {[%clk 0:02:09.4]} 25.
f4 {[%clk 0:00:39.3]} 25... Kg7 {[%clk 0:02:07.4]} 26. fxg5 {[%clk 0:00:32.4]}
26... fxg5 {[%clk 0:02:08.3]} 27. Bh7 {[%clk 0:00:31.9]} 27... Rxf1+ {[%clk
0:02:06.4]} 28. Kxf1 {[%clk 0:00:32.6]} 28... Qe8 {[%clk 0:02:04.1]} 29. Rb1
{[%clk 0:00:30]} 29... Kh6 {[%clk 0:01:55.6]} 30. Kg1 {[%clk 0:00:28.3]} 30...
Qf7 {[%clk 0:01:49.6]} 31. Bd3 {[%clk 0:00:25.1]} 31... Qg7 {[%clk 0:01:42.7]}
32. Bb8 {[%clk 0:00:23.5]} 32... Ra8 {[%clk 0:01:42.7]} 33. Rxb7 {[%clk
0:00:23.6]} 33... Bc8 {[%clk 0:01:38.1]} 34. Be5 {[%clk 0:00:23.7]} 34... Qf8
{[%clk 0:01:34.8]} 35. Rc7 {[%clk 0:00:20.7]} 35... Qe8 {[%clk 0:01:32.2]} 36.
Qf2 {[%clk 0:00:19]} 36... Be6 {[%clk 0:01:25.7]} 37. Bd6 {[%clk 0:00:18.5]}
37... Bd8 {[%clk 0:01:21.6]} 38. Bf8+ {[%clk 0:00:14.8]} 38... Kh5 {[%clk
0:01:18.7]} 39. Rh7# {[%clk 0:00:14.1]} 1-0

[Event "Early-Titled-Tuesday-Blitz-July-09-2024"]
[Site "Chess.com"]
[Date "2024.07.09"]
[Round "3"]
[White "ArmanGhevondyanchess"]
[Black "Msb2"]
[Result "0-1"]
[WhiteElo "2753"]
[BlackElo "3104"]
[TimeControl "180+1"]
[EndTime "8:28:24 PDT"]
[Termination "Msb2 won by resignation"]

1. Nf3 {[%clk 0:03:00.9]} 1... d5 {[%clk 0:02:59.8]} 2. d4 {[%clk 0:03:01.2]}
2... e6 {[%clk 0:03:00.2]} 3. g3 {[%clk 0:03:01.7]} 3... Nf6 {[%clk 0:03:00.2]}
4. Bg2 {[%clk 0:02:59.8]} 4... Bd6 {[%clk 0:03:00.8]} 5. O-O {[%clk 0:02:59.5]}
5... O-O {[%clk 0:03:00.7]} 6. c4 {[%clk 0:02:57.7]} 6... Nc6 {[%clk 0:03:01.2]}
7. Nc3 {[%clk 0:02:54.4]} 7... dxc4 {[%clk 0:03:01.2]} 8. Qa4 {[%clk 0:02:52]}
8... e5 {[%clk 0:03:01.5]} 9. dxe5 {[%clk 0:02:43.1]} 9... Nxe5 {[%clk
0:03:02.4]} 10. Nxe5 {[%clk 0:02:42.6]} 10... Bxe5 {[%clk 0:03:03.3]} 11. Qxc4
{[%clk 0:02:31.7]} 11... c6 {[%clk 0:03:03.5]} 12. Rd1 {[%clk 0:02:28.7]} 12...
Qe7 {[%clk 0:03:03.4]} 13. Be3 {[%clk 0:02:23.7]} 13... Be6 {[%clk 0:03:03.4]}
14. Qc5 {[%clk 0:02:23.2]} 14... Qxc5 {[%clk 0:03:03.6]} 15. Bxc5 {[%clk
0:02:24.1]} 15... Rfd8 {[%clk 0:03:04.2]} 16. f4 {[%clk 0:02:17.3]} 16... Bxc3
{[%clk 0:02:44.9]} 17. bxc3 {[%clk 0:02:13.1]} 17... Rxd1+ {[%clk 0:02:42.8]}
18. Rxd1 {[%clk 0:02:12.2]} 18... Bxa2 {[%clk 0:02:43.7]} 19. Ra1 {[%clk
0:02:08.6]} 19... Bc4 {[%clk 0:02:41.3]} 20. e4 {[%clk 0:01:59.4]} 20... a5
{[%clk 0:02:40.6]} 21. e5 {[%clk 0:01:59.4]} 21... Nd5 {[%clk 0:02:40.5]} 22.
Bxd5 {[%clk 0:01:54.6]} 22... Bxd5 {[%clk 0:02:37.8]} 23. Kf2 {[%clk 0:01:52.3]}
23... a4 {[%clk 0:02:38.3]} 24. Ke3 {[%clk 0:01:52.6]} 24... f6 {[%clk
0:02:35.2]} 25. Kd4 {[%clk 0:01:50.6]} 25... b5 {[%clk 0:02:35.5]} 26. Ba3
{[%clk 0:01:44.9]} 26... Kf7 {[%clk 0:02:32.8]} 27. Re1 {[%clk 0:01:28.4]} 27...
Re8 {[%clk 0:02:26.6]} 28. Bd6 {[%clk 0:01:24.8]} 28... h5 {[%clk 0:02:21]} 29.
f5 {[%clk 0:01:15.4]} 29... fxe5+ {[%clk 0:02:19.2]} 30. Rxe5 {[%clk 0:01:16.3]}
30... Ra8 {[%clk 0:02:16.4]} 31. Ba3 {[%clk 0:01:09.3]} 31... Ra7 {[%clk
0:02:16.4]} 32. f6 {[%clk 0:01:04.8]} 32... gxf6 {[%clk 0:02:10.6]} 33. Rxh5
{[%clk 0:01:04.2]} 33... Kg6 {[%clk 0:02:11.3]} 34. Rh8 {[%clk 0:00:56.8]} 34...
Rd7 {[%clk 0:02:11.8]} 35. h4 {[%clk 0:00:49.7]} 35... Kg7 {[%clk 0:02:02.7]}
36. Rb8 {[%clk 0:00:42]} 36... Bc4+ {[%clk 0:01:54.4]} 37. Kc5 {[%clk
0:00:37.2]} 37... Rd3 {[%clk 0:01:54.6]} 38. Bb4 {[%clk 0:00:37.5]} 38... Rxg3
{[%clk 0:01:51.3]} 39. Kxc6 {[%clk 0:00:35.4]} 39... Rh3 {[%clk 0:01:51.4]} 40.
Kd6 {[%clk 0:00:28]} 40... Rxh4 {[%clk 0:01:50.6]} 41. Ke7 {[%clk 0:00:26.2]}
41... Re4+ {[%clk 0:01:50.4]} 42. Kd6 {[%clk 0:00:26.7]} 42... f5 {[%clk
0:01:48.6]} 43. Rb7+ {[%clk 0:00:26.6]} 43... Kg6 {[%clk 0:01:48.8]} 44. Bc5
{[%clk 0:00:27.3]} 44... f4 {[%clk 0:01:47.7]} 45. Bd4 {[%clk 0:00:25.7]} 45...
f3 {[%clk 0:01:46.3]} 46. Rg7+ {[%clk 0:00:24.3]} 46... Kf5 {[%clk 0:01:46.2]}
47. Rg1 {[%clk 0:00:18.2]} 47... Rxd4+ {[%clk 0:01:43.3]} 48. cxd4 {[%clk
0:00:18.5]} 48... f2 {[%clk 0:01:43.9]} 0-1

[Event "Early-Titled-Tuesday-Blitz-July-09-2024"]
[Site "Chess.com"]
[Date "2024.07.09"]
[Round "3"]
[White "krucki03"]
[Black "Kirill_Klukin"]
[Result "0-1"]
[WhiteElo "2517"]
[BlackElo "2918"]
[TimeControl "180+1"]
[EndTime "8:28:29 PDT"]
[Termination "Kirill_Klukin won by resignation"]

1. d4 {[%clk 0:03:00.9]} 1... Nf6 {[%clk 0:02:58.5]} 2. Nf3 {[%clk 0:03:01.2]}
2... e6 {[%clk 0:02:58.6]} 3. c3 {[%clk 0:03:00.1]} 3... d5 {[%clk 0:02:53]} 4.
Bg5 {[%clk 0:02:59.5]} 4... Nbd7 {[%clk 0:02:49.4]} 5. Nbd2 {[%clk 0:02:59.8]}
5... Be7 {[%clk 0:02:49.5]} 6. e3 {[%clk 0:02:59]} 6... h6 {[%clk 0:02:48.4]} 7.
Bh4 {[%clk 0:02:59]} 7... b6 {[%clk 0:02:45.5]} 8. Bd3 {[%clk 0:02:58.9]} 8...
Bb7 {[%clk 0:02:45.7]} 9. O-O {[%clk 0:02:58.5]} 9... Ne4 {[%clk 0:02:42.6]} 10.
Bxe7 {[%clk 0:02:55.8]} 10... Qxe7 {[%clk 0:02:43.5]} 11. Qe2 {[%clk 0:02:44.2]}
11... O-O {[%clk 0:02:40]} 12. Ba6 {[%clk 0:02:43.5]} 12... Bxa6 {[%clk
0:02:30.2]} 13. Qxa6 {[%clk 0:02:44.4]} 13... Nxd2 {[%clk 0:02:29.1]} 14. Nxd2
{[%clk 0:02:43.4]} 14... c5 {[%clk 0:02:27]} 15. a4 {[%clk 0:02:30.6]} 15... Nb8
{[%clk 0:01:59.7]} 16. Qe2 {[%clk 0:02:28.8]} 16... Nc6 {[%clk 0:01:58.7]} 17.
Rfb1 {[%clk 0:02:20.1]} 17... Rfc8 {[%clk 0:01:53.9]} 18. Qd3 {[%clk 0:02:13.4]}
18... e5 {[%clk 0:01:38.4]} 19. dxe5 {[%clk 0:02:11.9]} 19... Qxe5 {[%clk
0:01:31.1]} 20. Nf3 {[%clk 0:02:10.8]} 20... Qe6 {[%clk 0:01:31.1]} 21. Rd1
{[%clk 0:02:10.2]} 21... Rd8 {[%clk 0:01:31.3]} 22. h3 {[%clk 0:02:05.2]} 22...
Rd7 {[%clk 0:01:30.7]} 23. Qb5 {[%clk 0:01:54.1]} 23... Rad8 {[%clk 0:01:30]}
24. Rd2 {[%clk 0:01:53]} 24... Na5 {[%clk 0:01:06.8]} 25. b4 {[%clk 0:01:23.7]}
25... Nb3 {[%clk 0:01:04.5]} 26. Rdd1 {[%clk 0:01:24.3]} 26... Nxa1 {[%clk
0:01:04.3]} 27. Rxa1 {[%clk 0:01:22.9]} 27... Qf6 {[%clk 0:01:01.1]} 28. Rc1
{[%clk 0:01:18.9]} 28... Rc7 {[%clk 0:01:00.5]} 29. bxc5 {[%clk 0:01:13.7]}
29... Rxc5 {[%clk 0:01:00.5]} 30. Qb3 {[%clk 0:01:14.1]} 30... Rdc8 {[%clk
0:00:53.1]} 31. Nd4 {[%clk 0:01:14.2]} 31... Qg6 {[%clk 0:00:53.7]} 32. Nb5
{[%clk 0:01:01.2]} 32... a6 {[%clk 0:00:52]} 33. Nd4 {[%clk 0:01:00.5]} 33...
Rc4 {[%clk 0:00:37.3]} 34. Rb1 {[%clk 0:00:56.4]} 34... Rxc3 {[%clk 0:00:31.5]}
35. Qxb6 {[%clk 0:00:54.8]} 35... Rc1+ {[%clk 0:00:31.8]} 36. Kh2 {[%clk
0:00:54.9]} 36... Qxb1 {[%clk 0:00:29]} 0-1

[Event "Early-Titled-Tuesday-Blitz-July-09-2024"]
[Site "Chess.com"]
[Date "2024.07.09"]
[Round "3"]
[White "wadsy27"]
[Black "IMVadim"]
[Result "0-1"]
[WhiteElo "2636"]
[BlackElo "2443"]
[TimeControl "180+1"]
[EndTime "8:28:29 PDT"]
[Termination "IMVadim won by resignation"]

1. e4 {[%clk 0:02:58.2]} 1... c5 {[%clk 0:02:57.8]} 2. Nf3 {[%clk 0:02:57.9]}
2... d6 {[%clk 0:02:57.6]} 3. Bb5+ {[%clk 0:02:57.4]} 3... Nd7 {[%clk
0:02:55.7]} 4. Ba4 {[%clk 0:02:57.9]} 4... Nf6 {[%clk 0:02:52.3]} 5. O-O {[%clk
0:02:57.6]} 5... Nxe4 {[%clk 0:02:47.7]} 6. d4 {[%clk 0:02:56.7]} 6... cxd4
{[%clk 0:02:45.9]} 7. Nxd4 {[%clk 0:02:57.6]} 7... Nc5 {[%clk 0:02:33.7]} 8. Bb3
{[%clk 0:02:52.4]} 8... Nxb3 {[%clk 0:02:33]} 9. axb3 {[%clk 0:02:53.1]} 9... g6
{[%clk 0:02:32.3]} 10. Re1 {[%clk 0:02:50.5]} 10... Bg7 {[%clk 0:02:28.8]} 11.
Bg5 {[%clk 0:02:50.5]} 11... Nf6 {[%clk 0:02:25.4]} 12. Qe2 {[%clk 0:02:44.7]}
12... O-O {[%clk 0:02:14.9]} 13. Qxe7 {[%clk 0:02:41.4]} 13... Qxe7 {[%clk
0:02:13.1]} 14. Rxe7 {[%clk 0:02:40.1]} 14... Nd5 {[%clk 0:02:10.2]} 15. Re4
{[%clk 0:02:38.3]} 15... h6 {[%clk 0:02:08]} 16. Be3 {[%clk 0:02:24]} 16... f5
{[%clk 0:02:03.1]} 17. Re6 {[%clk 0:02:12]} 17... Bxd4 {[%clk 0:01:29.2]} 18.
Rxg6+ {[%clk 0:02:09.9]} 18... Kf7 {[%clk 0:01:28.5]} 19. Rxd6 {[%clk
0:01:52.3]} 19... Nxe3 {[%clk 0:01:27.2]} 20. fxe3 {[%clk 0:01:42.4]} 20...
Bxe3+ {[%clk 0:01:28.1]} 21. Kh1 {[%clk 0:01:43]} 21... Be6 {[%clk 0:01:21]} 22.
Nc3 {[%clk 0:00:56]} 22... Rfd8 {[%clk 0:01:19.4]} 23. Rad1 {[%clk 0:00:56.6]}
23... Ke7 {[%clk 0:01:10.2]} 24. Rxd8 {[%clk 0:00:48.4]} 24... Rxd8 {[%clk
0:01:09]} 25. Re1 {[%clk 0:00:38.7]} 25... Bd2 {[%clk 0:01:04.3]} 26. Ra1 {[%clk
0:00:38.6]} 26... Bxc3 {[%clk 0:01:04.4]} 27. bxc3 {[%clk 0:00:38.9]} 27... a6
{[%clk 0:01:04.5]} 28. Kg1 {[%clk 0:00:28]} 28... Rd2 {[%clk 0:01:04.5]} 29. Rc1
{[%clk 0:00:28.2]} 29... Bd5 {[%clk 0:01:04.6]} 30. c4 {[%clk 0:00:23.9]} 30...
Rxg2+ {[%clk 0:01:04.1]} 31. Kf1 {[%clk 0:00:23.9]} 31... Be4 {[%clk 0:01:03.9]}
32. b4 {[%clk 0:00:22.5]} 32... Rxh2 {[%clk 0:01:03.7]} 0-1

[Event "Early-Titled-Tuesday-Blitz-July-09-2024"]
[Site "Chess.com"]
[Date "2024.07.09"]
[Round "3"]
[White "nekotyanof"]
[Black "nj123456"]
[Result "0-1"]
[WhiteElo "2670"]
[BlackElo "2494"]
[TimeControl "180+1"]
[EndTime "8:28:31 PDT"]
[Termination "nj123456 won by checkmate"]

1. e4 {[%clk 0:03:00.9]} 1... c6 {[%clk 0:03:00]} 2. Nc3 {[%clk 0:03:00.6]} 2...
d5 {[%clk 0:03:00.7]} 3. Nf3 {[%clk 0:03:01.2]} 3... dxe4 {[%clk 0:02:59.9]} 4.
Nxe4 {[%clk 0:03:02.1]} 4... Nf6 {[%clk 0:03:00.6]} 5. Qe2 {[%clk 0:03:02.6]}
5... Nxe4 {[%clk 0:03:00.2]} 6. Qxe4 {[%clk 0:03:03.5]} 6... Qd5 {[%clk
0:03:00.9]} 7. Qh4 {[%clk 0:03:03.4]} 7... Qe6+ {[%clk 0:03:01.1]} 8. Be2 {[%clk
0:03:03.9]} 8... Qg4 {[%clk 0:03:01.8]} 9. Qg3 {[%clk 0:03:01.9]} 9... Qxg3
{[%clk 0:03:02.2]} 10. hxg3 {[%clk 0:03:02.8]} 10... g6 {[%clk 0:03:02.8]} 11.
d4 {[%clk 0:03:03.1]} 11... Bg7 {[%clk 0:03:02.3]} 12. Bh6 {[%clk 0:03:03.4]}
12... O-O {[%clk 0:03:01.1]} 13. Kd2 {[%clk 0:03:03.3]} 13... Rd8 {[%clk
0:02:50.6]} 14. c3 {[%clk 0:03:00.5]} 14... c5 {[%clk 0:02:49.8]} 15. Bxg7
{[%clk 0:03:00.5]} 15... Kxg7 {[%clk 0:02:48.6]} 16. Rh4 {[%clk 0:02:54.4]}
16... Nc6 {[%clk 0:02:45.1]} 17. Rah1 {[%clk 0:02:53.2]} 17... h5 {[%clk
0:02:45.2]} 18. Ke3 {[%clk 0:02:52.5]} 18... Bg4 {[%clk 0:02:41.2]} 19. dxc5
{[%clk 0:02:44.2]} 19... Rd5 {[%clk 0:02:30]} 20. b4 {[%clk 0:02:41.8]} 20...
Rad8 {[%clk 0:02:28.5]} 21. Bc4 {[%clk 0:02:22.1]} 21... Bxf3 {[%clk 0:01:59.7]}
22. gxf3 {[%clk 0:02:23]} 22... Rd2 {[%clk 0:01:53.6]} 23. Re1 {[%clk
0:02:14.4]} 23... Ne5 {[%clk 0:01:46.9]} 24. Be2 {[%clk 0:01:55.9]} 24... Rxa2
{[%clk 0:01:44.3]} 25. Re4 {[%clk 0:01:56.3]} 25... Nc6 {[%clk 0:00:35.1]} 26.
Bb5 {[%clk 0:01:35.3]} 26... e6 {[%clk 0:00:32.1]} 27. Bxc6 {[%clk 0:01:32.3]}
27... bxc6 {[%clk 0:00:33]} 28. Rd4 {[%clk 0:01:33.2]} 28... Rd5 {[%clk
0:00:25.6]} 29. f4 {[%clk 0:01:29.9]} 29... Kf6 {[%clk 0:00:25.5]} 30. f3 {[%clk
0:01:29.5]} 30... Ra3 {[%clk 0:00:25.4]} 31. Rc1 {[%clk 0:01:29.1]} 31... a5
{[%clk 0:00:24.9]} 32. Ke4 {[%clk 0:01:27.6]} 32... axb4 {[%clk 0:00:22.8]} 33.
cxb4 {[%clk 0:01:28.5]} 33... Rb3 {[%clk 0:00:22.3]} 34. Rcd1 {[%clk 0:01:10.4]}
34... Ke7 {[%clk 0:00:20.8]} 35. g4 {[%clk 0:01:07]} 35... f5+ {[%clk
0:00:20.2]} 36. gxf5 {[%clk 0:01:07.4]} 36... gxf5# {[%clk 0:00:21.1]} 0-1

[Event "Early-Titled-Tuesday-Blitz-July-09-2024"]
[Site "Chess.com"]
[Date "2024.07.09"]
[Round "3"]
[White "Tagir45"]
[Black "simonachess"]
[Result "1-0"]
[WhiteElo "2618"]
[BlackElo "2331"]
[TimeControl "180+1"]
[EndTime "8:28:32 PDT"]
[Termination "Tagir45 won by resignation"]

1. d4 {[%clk 0:03:00.9]} 1... Nf6 {[%clk 0:02:59.4]} 2. Nf3 {[%clk 0:03:00.2]}
2... e6 {[%clk 0:02:59.4]} 3. c4 {[%clk 0:03:00.2]} 3... b6 {[%clk 0:02:59.6]}
4. a3 {[%clk 0:02:59]} 4... Bb7 {[%clk 0:03:00.1]} 5. Nc3 {[%clk 0:02:58.4]}
5... Be7 {[%clk 0:03:00.1]} 6. d5 {[%clk 0:02:57.6]} 6... O-O {[%clk 0:02:59.1]}
7. e4 {[%clk 0:02:57.5]} 7... exd5 {[%clk 0:02:57.2]} 8. cxd5 {[%clk 0:02:55]}
8... d6 {[%clk 0:02:51.3]} 9. Bd3 {[%clk 0:02:54.4]} 9... c5 {[%clk 0:02:51.3]}
10. O-O {[%clk 0:02:52.9]} 10... Nfd7 {[%clk 0:02:47.8]} 11. Bf4 {[%clk
0:02:49.6]} 11... a6 {[%clk 0:02:43.4]} 12. a4 {[%clk 0:02:49.3]} 12... Re8
{[%clk 0:02:43.2]} 13. Re1 {[%clk 0:02:43.6]} 13... Bf8 {[%clk 0:02:43.3]} 14.
h3 {[%clk 0:02:39.4]} 14... Ne5 {[%clk 0:02:42.5]} 15. Nxe5 {[%clk 0:02:38.3]}
15... dxe5 {[%clk 0:02:43.4]} 16. Bd2 {[%clk 0:02:36.1]} 16... Nd7 {[%clk
0:02:41.5]} 17. Nb1 {[%clk 0:02:34.6]} 17... Qc7 {[%clk 0:02:31.2]} 18. Na3
{[%clk 0:02:33.8]} 18... Reb8 {[%clk 0:02:23.8]} 19. Bf1 {[%clk 0:02:14]} 19...
Nf6 {[%clk 0:02:23.5]} 20. Nc4 {[%clk 0:02:00.9]} 20... b5 {[%clk 0:02:21.3]}
21. Ba5 {[%clk 0:01:57.3]} 21... Qe7 {[%clk 0:02:18.5]} 22. Nb6 {[%clk
0:01:56.4]} 22... c4 {[%clk 0:02:15]} 23. Nxa8 {[%clk 0:01:54.4]} 23... Bxa8
{[%clk 0:02:13.3]} 24. axb5 {[%clk 0:01:53]} 24... axb5 {[%clk 0:02:13.7]} 25.
b3 {[%clk 0:01:45.3]} 25... cxb3 {[%clk 0:01:58.4]} 26. Qxb3 {[%clk 0:01:34.9]}
26... Nh5 {[%clk 0:01:58.3]} 27. Red1 {[%clk 0:01:30.7]} 27... Qf6 {[%clk
0:01:44.9]} 28. Bb4 {[%clk 0:01:24.3]} 28... Bxb4 {[%clk 0:01:39.2]} 29. Qxb4
{[%clk 0:01:20]} 29... Nf4 {[%clk 0:01:38.9]} 30. Qxb5 {[%clk 0:01:15.3]} 30...
Rd8 {[%clk 0:01:33.8]} 31. Rdb1 {[%clk 0:01:09.5]} 31... h5 {[%clk 0:01:27.8]}
32. Qb6 {[%clk 0:01:06.4]} 32... Qg5 {[%clk 0:01:27.5]} 33. Qe3 {[%clk
0:01:00.7]} 33... h4 {[%clk 0:01:24.1]} 34. Ra7 {[%clk 0:00:59.2]} 34... Qg6
{[%clk 0:01:05.5]} 35. Rba1 {[%clk 0:00:52.7]} 1-0

[Event "Early-Titled-Tuesday-Blitz-July-09-2024"]
[Site "Chess.com"]
[Date "2024.07.09"]
[Round "3"]
[White "DanylaBagrov"]
[Black "madmax011"]
[Result "1-0"]
[WhiteElo "2601"]
[BlackElo "2377"]
[TimeControl "180+1"]
[EndTime "8:28:33 PDT"]
[Termination "DanylaBagrov won by resignation"]

1. e4 {[%clk 0:03:00.9]} 1... c5 {[%clk 0:02:59.9]} 2. Nf3 {[%clk 0:03:01]} 2...
d6 {[%clk 0:03:00.1]} 3. Bb5+ {[%clk 0:03:01.4]} 3... Nd7 {[%clk 0:02:48.9]} 4.
O-O {[%clk 0:03:00.8]} 4... g6 {[%clk 0:02:49.4]} 5. c3 {[%clk 0:03:00.7]} 5...
Bg7 {[%clk 0:02:49.4]} 6. d4 {[%clk 0:03:00.5]} 6... a6 {[%clk 0:02:49.5]} 7.
Bd3 {[%clk 0:02:59.1]} 7... Ngf6 {[%clk 0:02:47.5]} 8. e5 {[%clk 0:02:58.3]}
8... dxe5 {[%clk 0:02:44.3]} 9. dxe5 {[%clk 0:02:59.2]} 9... Ng8 {[%clk
0:02:35.4]} 10. e6 {[%clk 0:02:39.5]} 10... fxe6 {[%clk 0:02:34.9]} 11. Re1
{[%clk 0:02:28.2]} 11... Ngf6 {[%clk 0:02:17.3]} 12. Ng5 {[%clk 0:02:22.1]}
12... Nb6 {[%clk 0:02:16.1]} 13. Qc2 {[%clk 0:02:11.9]} 13... O-O {[%clk
0:02:00.4]} 14. Be3 {[%clk 0:02:05.2]} 14... c4 {[%clk 0:01:51.6]} 15. Bf1
{[%clk 0:02:05.4]} 15... Nbd5 {[%clk 0:01:41]} 16. Bd4 {[%clk 0:02:05.5]} 16...
b5 {[%clk 0:01:34.4]} 17. a4 {[%clk 0:02:05.1]} 17... Bd7 {[%clk 0:01:32]} 18.
Nxe6 {[%clk 0:01:57.1]} 18... Bxe6 {[%clk 0:01:30.4]} 19. Rxe6 {[%clk 0:01:58]}
19... Qc7 {[%clk 0:01:20.2]} 20. g3 {[%clk 0:01:42.9]} 20... Ng4 {[%clk
0:01:05.9]} 21. Qd1 {[%clk 0:01:27.6]} 21... Qd7 {[%clk 0:00:43.6]} 22. Qxg4
{[%clk 0:01:21.3]} 22... Nf6 {[%clk 0:00:20.5]} 23. Qe2 {[%clk 0:01:14.9]} 23...
bxa4 {[%clk 0:00:15.4]} 24. Rxe7 {[%clk 0:01:12.6]} 24... Qb5 {[%clk 0:00:15.2]}
25. Qxc4+ {[%clk 0:01:11.8]} 25... Qxc4 {[%clk 0:00:15.2]} 26. Bxc4+ {[%clk
0:01:12.7]} 26... Kh8 {[%clk 0:00:15.9]} 27. Rxa4 {[%clk 0:01:11]} 27... Rae8
{[%clk 0:00:13.7]} 28. Rxe8 {[%clk 0:01:06.6]} 28... Rxe8 {[%clk 0:00:14.6]} 29.
Rxa6 {[%clk 0:01:03.4]} 29... Re1+ {[%clk 0:00:14.6]} 30. Kg2 {[%clk 0:01:04]}
30... Rxb1 {[%clk 0:00:11.8]} 31. Ra8+ {[%clk 0:01:01.6]} 1-0

[Event "Early-Titled-Tuesday-Blitz-July-09-2024"]
[Site "Chess.com"]
[Date "2024.07.09"]
[Round "3"]
[White "esskeettit"]
[Black "SuperGPatzer"]
[Result "1-0"]
[WhiteElo "2539"]
[BlackElo "2149"]
[TimeControl "180+1"]
[EndTime "8:28:34 PDT"]
[Termination "esskeettit won by resignation"]

1. d4 {[%clk 0:03:00.9]} 1... c5 {[%clk 0:02:59.3]} 2. c4 {[%clk 0:03:01.2]}
2... cxd4 {[%clk 0:02:54.8]} 3. Qxd4 {[%clk 0:03:02]} 3... Nc6 {[%clk
0:02:54.5]} 4. Qd1 {[%clk 0:03:02.4]} 4... Nf6 {[%clk 0:02:52.1]} 5. Nf3 {[%clk
0:03:02.8]} 5... d5 {[%clk 0:02:49]} 6. e3 {[%clk 0:02:38.7]} 6... e5 {[%clk
0:02:45.3]} 7. Nc3 {[%clk 0:02:32.5]} 7... Bb4 {[%clk 0:02:44]} 8. cxd5 {[%clk
0:02:23]} 8... Nxd5 {[%clk 0:02:37.7]} 9. Bd2 {[%clk 0:02:23.5]} 9... Nxc3
{[%clk 0:02:21.1]} 10. bxc3 {[%clk 0:02:24.4]} 10... Bd6 {[%clk 0:02:13.2]} 11.
Be2 {[%clk 0:02:18.3]} 11... O-O {[%clk 0:02:12.7]} 12. O-O {[%clk 0:02:18.9]}
12... Be6 {[%clk 0:02:09.8]} 13. Qa4 {[%clk 0:02:12.6]} 13... h6 {[%clk
0:02:01.9]} 14. Rfd1 {[%clk 0:02:13]} 14... Qc7 {[%clk 0:01:57.6]} 15. h3 {[%clk
0:02:11]} 15... Rfd8 {[%clk 0:01:55.6]} 16. Qh4 {[%clk 0:02:04.4]} 16... Be7
{[%clk 0:01:50.7]} 17. Qa4 {[%clk 0:01:41.1]} 17... Rac8 {[%clk 0:01:44.4]} 18.
Be1 {[%clk 0:01:41]} 18... a6 {[%clk 0:01:42.5]} 19. c4 {[%clk 0:01:39.8]} 19...
e4 {[%clk 0:01:38.3]} 20. Nd4 {[%clk 0:01:38.1]} 20... Nxd4 {[%clk 0:01:26.5]}
21. exd4 {[%clk 0:01:37.7]} 21... Bxc4 {[%clk 0:01:21.9]} 22. Ba5 {[%clk
0:01:13.7]} 22... Qc6 {[%clk 0:01:10.2]} 23. Qxc6 {[%clk 0:00:44]} 23... Rxc6
{[%clk 0:01:09.9]} 24. Bxd8 {[%clk 0:00:41.5]} 24... Bxd8 {[%clk 0:01:10.8]} 25.
Bxc4 {[%clk 0:00:32.7]} 25... Rxc4 {[%clk 0:01:11.7]} 26. Rac1 {[%clk
0:00:32.5]} 26... Rxc1 {[%clk 0:01:02.8]} 27. Rxc1 {[%clk 0:00:33.4]} 27... Kf8
{[%clk 0:01:02.8]} 28. Kf1 {[%clk 0:00:33.8]} 28... Ke7 {[%clk 0:01:02.7]} 29.
Ke2 {[%clk 0:00:34.3]} 29... Bb6 {[%clk 0:01:01.7]} 30. Ke3 {[%clk 0:00:34.2]}
30... f5 {[%clk 0:01:01.6]} 31. g3 {[%clk 0:00:34.7]} 31... g6 {[%clk
0:01:01.4]} 32. Rb1 {[%clk 0:00:33.6]} 32... Bc7 {[%clk 0:00:51.8]} 33. Rxb7
{[%clk 0:00:33.4]} 33... Kd6 {[%clk 0:00:51.9]} 34. Ra7 {[%clk 0:00:33.3]} 1-0